bitfinex/quotes_BTCUSD_20251015
["timestamp","ask_amount","ask_price","bid_price","bid_amount"]
[1760565847213,0.0002,111060.0,111050.0,3.07512957]
[1760565847426,0.0002,111060.0,111050.0,3.09559982]
[1760565847653,0.0002,111060.0,111050.0,3.09459982]
[1760565848147,0.0002,111060.0,111050.0,2.99729395]
[1760565848361,0.0002,111060.0,111050.0,3.43559982]
[1760565848568,0.0002,111060.0,111050.0,3.43459982]
[1760565848784,0.0002,111060.0,111050.0,3.48459982]
[1760565849007,0.0002,111060.0,111050.0,3.48559982]
[1760565849406,0.00196519,111060.0,111050.0,3.48559982]
[1760565851134,0.00196519,111060.0,111050.0,3.37191982]
[1760565851346,0.00196519,111060.0,111050.0,3.48559982]
[1760565851567,1e-08,111060.0,111050.0,3.48559982]
[1760565851782,1e-08,111060.0,111050.0,3.37191982]
[1760565852043,1e-08,111060.0,111050.0,3.48555982]
[1760565852877,1e-08,111060.0,111050.0,2.13361395]
[1760565853094,1e-08,111060.0,111050.0,2.30725395]
[1760565853328,1e-08,111060.0,111050.0,2.63191982]
[1760565853522,1e-08,111060.0,111050.0,2.74555982]
[1760565853727,1e-08,111060.0,111050.0,2.74455982]
[1760565853937,1e-08,111060.0,111050.0,2.74555982]
[1760565854386,1e-08,111060.0,111050.0,2.70937754]
[1760565854607,0.1800342,111090.0,111080.0,0.18005041]
[1760565854825,0.18018445,111090.0,111080.0,0.38338053]
[1760565855040,0.18018445,111090.0,111080.0,0.08969012]
[1760565855502,0.18018445,111090.0,111050.0,1.16902165]
[1760565855503,0.18007215,111070.0,111050.0,1.16902165]
[1760565855727,0.18007215,111070.0,111060.0,0.26977295]
[1760565856198,0.18006852,111080.0,111070.0,0.18006662]
[1760565856407,0.18918616,111090.0,111070.0,0.38339674]
[1760565856619,0.18005041,111080.0,111070.0,0.38339674]
[1760565856833,0.18005041,111080.0,111070.0,0.20333012]
[1760565857054,0.18005041,111080.0,111070.0,0.38339674]
[1760565857295,0.18005041,111080.0,111070.0,0.88339674]
[1760565857494,0.18005041,111080.0,111070.0,0.76975674]
[1760565857706,0.18005041,111080.0,111070.0,0.70333012]
[1760565857933,0.18005041,111080.0,111070.0,0.5]
[1760565858384,0.55549606,111080.0,111070.0,0.5]
[1760565858614,0.55549606,111080.0,111070.0,0.61364]
[1760565859257,0.55549606,111080.0,111070.0,0.5]
[1760565859712,0.55549606,111080.0,111070.0,0.61364]
[1760565860171,0.55549606,111080.0,111070.0,0.5]
[1760565860378,0.55649606,111080.0,111070.0,0.61364]
[1760565862170,0.55649606,111080.0,111070.0,0.5]
[1760565862524,0.55649606,111080.0,111070.0,0.61364]
[1760565863687,0.52008126,111070.0,111050.0,0.18910393]
[1760565863887,0.48853336,111070.0,111060.0,0.11364]
[1760565864313,0.51559021,111070.0,111060.0,0.11364]
[1760565864559,0.51559021,111070.0,111060.0,0.29372283]
[1760565864769,0.19005293,111080.0,111060.0,0.29372283]
[1760565864983,0.18006662,111070.0,111050.0,0.27879405]
[1760565865151,0.18006662,111070.0,111060.0,0.29368283]
[1760565865348,0.18006662,111070.0,111060.0,0.29372283]
[1760565865768,0.18106662,111070.0,111060.0,0.29372283]
[1760565865984,0.18106662,111070.0,111060.0,0.11364]
[1760565866246,0.18008283,111060.0,111050.0,0.08969012]
[1760565866439,0.18008283,111060.0,111050.0,0.38338917]
[1760565867107,0.18008283,111060.0,111050.0,0.20329012]
[1760565867561,0.18008283,111060.0,111050.0,0.38338917]
[1760565868434,0.18006662,111070.0,111050.0,0.38338917]
[1760565868662,0.18006662,111070.0,111060.0,0.1136]
[1760565868884,0.18006662,111070.0,111050.0,0.26978917]
[1760565869101,0.18006662,111070.0,111060.0,0.1136]
[1760565871329,0.18008283,111060.0,111050.0,0.26978917]
[1760565871581,0.18008283,111060.0,111050.0,0.38334917]
[1760565872511,0.18008283,111060.0,111050.0,0.26978917]
[1760565872730,0.18008283,111060.0,111050.0,0.38334917]
[1760565873209,0.18065488,111070.0,111050.0,0.38334917]
[1760565873210,0.00058826,111070.0,111060.0,0.18008283]
[1760565873424,0.00058826,111070.0,111060.0,0.38333295]
[1760565873660,0.18065488,111070.0,111060.0,0.38333295]
[1760565874739,0.18065488,111070.0,111060.0,0.20325012]
[1760565875188,0.18065488,111070.0,111060.0,0.38333295]
[1760565875821,0.18065488,111070.0,111060.0,0.20325012]
[1760565876036,0.47814423,111080.0,111060.0,0.20325012]
[1760565876243,0.18006662,111070.0,111060.0,0.38333079]
[1760565877384,0.20712129,111070.0,111060.0,0.38333079]
[1760565877845,0.20712129,111070.0,111060.0,0.08969012]
[1760565878082,0.20712129,111070.0,111060.0,0.20325012]
[1760565878527,0.20712129,111070.0,111060.0,0.38333295]
[1760565878752,0.20712129,111070.0,111060.0,0.26977295]
[1760565878989,0.20712129,111070.0,111060.0,0.38329295]
[1760565879216,0.18008283,111060.0,111050.0,0.18009905]
[1760565879447,0.18008283,111060.0,111050.0,0.38330917]
[1760565879656,0.18008283,111060.0,111050.0,0.26978917]
[1760565879873,0.18008283,111060.0,111050.0,0.38330917]
[1760565881471,0.18008283,111060.0,111050.0,0.26978917]
[1760565881682,0.18008283,111060.0,111050.0,0.38330917]
[1760565882347,0.18008283,111060.0,111050.0,0.26978917]
[1760565882547,0.18008283,111060.0,111050.0,0.38330917]
[1760565882760,0.18008283,111060.0,111050.0,0.38326917]
[1760565882966,0.18008283,111060.0,111050.0,0.26978917]
[1760565883203,0.18008283,111060.0,111050.0,0.38326917]
[1760565883863,0.18008283,111060.0,111020.0,0.64925686]
[1760565883864,0.18009905,111050.0,111020.0,0.64925686]
[1760565884081,0.18011527,111040.0,111030.0,0.26982161]
[1760565884307,0.18009905,111050.0,111030.0,0.76895848]
[1760565884557,0.18009905,111050.0,111040.0,0.18011527]
[1760565885007,0.36706114,111060.0,111040.0,0.38332539]
[1760565885276,0.54714397,111060.0,111050.0,0.11352]
[1760565885737,0.54714397,111060.0,111050.0,0.29357905]
[1760565885952,0.18009905,111050.0,111040.0,0.26980539]
[1760565886161,0.18011527,111040.0,111030.0,0.18013149]
[1760565886374,0.18011527,111040.0,111030.0,0.38330161]
[1760565886589,0.18011527,111040.0,111030.0,0.26982161]
[1760565886810,0.18013149,111030.0,111020.0,0.00273279]
[1760565887024,0.18011527,111040.0,111020.0,0.38605063]
[1760565887233,0.20717983,111040.0,111030.0,0.11352]
[1760565887453,0.18013149,111030.0,111020.0,0.27257063]
[1760565887672,0.18013149,111030.0,111020.0,0.00273279]
[1760565887891,0.18013149,111030.0,111020.0,0.29640051]
[1760565888097,0.18013149,111030.0,111020.0,0.18288051]
[1760565888370,0.18013149,111030.0,111020.0,0.29636051]
[1760565889870,0.18013149,111030.0,111020.0,0.18288051]
[1760565890085,0.18013149,111030.0,111020.0,0.29636051]
[1760565891066,0.18013149,111030.0,111020.0,0.18288051]
[1760565891506,0.18013149,111030.0,111020.0,0.29636051]
[1760565892165,0.18013149,111030.0,111020.0,0.18288051]
[1760565892377,0.18013149,111030.0,111020.0,0.29636051]
[1760565892814,0.18013149,111030.0,111020.0,0.18288051]
[1760565893010,0.18013149,111030.0,111020.0,0.29636051]
[1760565894443,0.02706456,111040.0,111030.0,0.18013149]
[1760565894893,0.20717983,111040.0,111030.0,0.29361149]
[1760565895797,0.18010915,111050.0,111030.0,0.38330161]
[1760565896059,0.2071711,111050.0,111030.0,0.38330161]
[1760565896281,0.2071711,111050.0,111040.0,0.11348]
[1760565896497,0.2071711,111050.0,111040.0,0.00899661]
[1760565896731,0.2071711,111050.0,111040.0,0.30259188]
[1760565897180,5.2071711,111050.0,111040.0,0.12247661]
[1760565897403,5.52708747,111050.0,111040.0,0.00899661]
[1760565897611,5.52708747,111050.0,111040.0,0.12247661]
[1760565897822,0.18013149,111030.0,111020.0,0.19188789]
[1760565898042,0.18013149,111030.0,111020.0,0.10141952]
[1760565898555,0.18013149,111030.0,111020.0,0.39504724]
[1760565899185,0.18013149,111030.0,111020.0,0.28156724]
[1760565899398,0.18013149,111030.0,111020.0,0.39504724]
[1760565899604,0.18012965,111040.0,111020.0,0.39504724]
[1760565899790,0.18013149,111030.0,111020.0,0.28156724]
[1760565900025,0.18013149,111030.0,111020.0,0.39504724]
[1760565900676,0.53609242,111050.0,111030.0,0.18013149]
[1760565900901,0.53609242,111050.0,111040.0,0.29359527]
[1760565901104,0.1891141,111050.0,111040.0,0.29359527]
[1760565901288,0.1891141,111050.0,111040.0,0.18911188]
[1760565901444,0.1891141,111050.0,111040.0,0.12243661]
[1760565901658,0.18009905,111050.0,111040.0,0.30255188]
[1760565901855,0.18009905,111050.0,111040.0,0.392242]
[1760565902463,0.3944263,111060.0,111040.0,0.392242]
[1760565902752,0.18009905,111050.0,111040.0,0.392242]
[1760565902965,0.18009905,111050.0,111040.0,0.00899661]
[1760565903177,5.18009905,111050.0,111040.0,0.00899661]
[1760565903388,5.53948902,111050.0,111040.0,0.12247661]
[1760565904027,5.53948902,111050.0,111040.0,0.00899661]
[1760565904273,5.18012971,111040.0,111030.0,0.00899661]
[1760565904487,0.18013149,111030.0,111020.0,0.07448489]
[1760565904696,5.18013149,111030.0,111020.0,0.18796489]
[1760565904901,5.52013149,111030.0,111020.0,0.00273279]
[1760565905131,5.53952604,111030.0,111020.0,0.00273279]
[1760565905346,5.54720049,111030.0,111020.0,0.00273279]
[1760565905562,5.56659171,111030.0,111020.0,0.00273279]
[1760565906432,0.54720049,111030.0,111020.0,0.00273279]
[1760565906908,0.54720049,111030.0,111020.0,0.11621279]
[1760565907321,0.56758812,111030.0,111020.0,0.00273279]
[1760565907568,0.56758812,111030.0,111020.0,0.11621279]
[1760565908627,0.54820049,111030.0,111020.0,0.11621279]
[1760565909082,0.54820049,111030.0,111020.0,0.00273279]
[1760565909292,0.54820049,111030.0,111020.0,0.11621279]
[1760565909478,0.56758996,111030.0,111020.0,0.11621279]
[1760565911218,0.56758996,111030.0,111020.0,0.00273279]
[1760565911479,0.56758996,111030.0,111020.0,0.11621279]
[1760565912159,5.65728008,111030.0,111020.0,0.00273279]
[1760565912369,5.77076008,111030.0,111020.0,0.00273279]
[1760565912582,5.56758996,111030.0,111020.0,0.00273279]
[1760565913434,5.65728008,111030.0,111020.0,0.00273279]
[1760565916642,5.56758996,111030.0,111020.0,0.00273279]
[1760565922560,0.56758996,111030.0,111020.0,0.00273279]
[1760565922800,0.54820049,111030.0,111020.0,0.00273279]
[1760565923025,5.54820049,111030.0,111020.0,0.11621279]
[1760565923250,5.56760009,111030.0,111020.0,0.00273279]
[1760565926407,5.65729021,111030.0,111020.0,0.00273279]
[1760565926655,5.66571374,111030.0,111020.0,0.00273279]
[1760565927320,5.68997078,111030.0,111020.0,0.00273279]
[1760565927785,5.70189602,111030.0,111020.0,1e-08]
[1760565928002,5.77096474,111030.0,111020.0,1e-08]
[1760565928644,5.76996188,111030.0,111020.0,1e-08]
[1760565929077,5.77196188,111030.0,111020.0,1e-08]
[1760565929559,5.69916088,111030.0,111020.0,1e-08]
[1760565929775,5.83690187,111030.0,111020.0,1e-08]
[1760565930670,5.72342187,111030.0,111020.0,1e-08]
[1760565930889,5.86567088,111030.0,111020.0,1e-08]
[1760565931105,6.08602561,111030.0,111020.0,1e-08]
[1760565931310,5.94787267,111030.0,111020.0,1e-08]
[1760565931523,5.94787551,111030.0,111020.0,1e-08]
[1760565931955,5.52019641,110990.0,110980.0,0.0717521]
[1760565932168,5.81164026,110990.0,110980.0,0.0722532]
[1760565932613,5.81164026,110990.0,110980.0,0.00344505]
[1760565932806,5.83872427,110990.0,110980.0,0.00344505]
[1760565933069,5.80254199,110990.0,110980.0,0.00344505]
[1760565933293,5.79411871,110990.0,110980.0,0.00344505]
[1760565934147,5.79611871,110990.0,110980.0,0.00344505]
[1760565934816,5.77185014,110990.0,110980.0,0.00344505]
[1760565935247,5.56868002,110990.0,110980.0,0.00344505]
[1760565936074,5.56768002,110990.0,110980.0,0.00344505]
[1760565936733,5.56768002,110990.0,110980.0,0.01244166]
[1760565937172,5.54059601,110990.0,110980.0,0.01244166]
[1760565937381,5.53959601,110990.0,110980.0,0.01244166]
[1760565937591,5.54059601,110990.0,110980.0,0.01244166]
[1760565937811,5.54159601,110990.0,110980.0,0.01244166]
[1760565938740,0.20159601,110990.0,110980.0,0.01244166]
[1760565938969,0.18219641,110990.0,110980.0,0.19265431]
[1760565939195,0.18219641,110990.0,110980.0,0.30617431]
[1760565939423,0.18019641,110990.0,110980.0,0.30616919]
[1760565939642,0.18019641,110990.0,110980.0,0.12596166]
[1760565940352,5.52019641,110990.0,110980.0,0.01244166]
[1760565941016,5.53958015,110990.0,110980.0,0.01244166]
[1760565941714,5.54058015,110990.0,110980.0,0.01244166]
[1760565941943,5.54158015,110990.0,110980.0,0.00344505]
[1760565942132,5.65510015,110990.0,110980.0,0.00344505]
[1760565943365,5.54158015,110990.0,110980.0,0.00344505]
[1760565943799,5.65510015,110990.0,110980.0,0.00344505]
[1760565944241,5.54158015,110990.0,110980.0,0.00344505]
[1760565944495,5.63127027,110990.0,110980.0,0.00344505]
[1760565944706,5.74479027,110990.0,110980.0,0.00344505]
[1760565945167,5.78097255,110990.0,110980.0,0.00344505]
[1760565945398,5.78938255,110990.0,110980.0,0.00344505]
[1760565946785,5.8091551,110990.0,110980.0,0.00344505]
[1760565947257,0.18026137,110950.0,110940.0,0.1852721]
[1760565947467,0.18026137,110950.0,110940.0,0.07184236]
[1760565947929,0.18026137,110950.0,110940.0,9.026e-05]
[1760565952491,5.18026137,110950.0,110940.0,9.026e-05]
[1760565952698,0.18026137,110950.0,110940.0,9.026e-05]
[1760565952912,0.18026137,110950.0,110940.0,0.00244699]
[1760565954223,5.0,110950.0,110940.0,0.29624461]
[1760565954455,0.18926877,110970.0,110950.0,0.18026137]
[1760565954666,0.18926877,110970.0,110950.0,0.18925798]
[1760565954667,0.18024513,110960.0,110950.0,0.18925798]
[1760565955109,0.18024513,110960.0,110950.0,0.30277798]
[1760565955543,0.18926877,110970.0,110950.0,0.30277798]
[1760565955785,0.18025981,110980.0,110960.0,0.18024513]
[1760565956031,0.18025981,110980.0,110960.0,0.29376513]
[1760565956529,0.18025981,110980.0,110960.0,0.18024513]
[1760565956960,0.18021265,110980.0,110970.0,0.29374889]
[1760565957165,0.18920623,110990.0,110970.0,0.39243562]
[1760565957376,0.18021265,110980.0,110970.0,0.27891562]
[1760565957597,0.18121265,110980.0,110970.0,0.39247562]
[1760565957812,0.18021265,110980.0,110970.0,0.39247562]
[1760565958229,0.18021265,110980.0,110970.0,0.27891562]
[1760565958230,0.18121265,110980.0,110970.0,0.27891562]
[1760565958438,0.18121265,110980.0,110970.0,0.39247562]
[1760565958855,0.18121265,110980.0,110970.0,0.27891562]
[1760565959065,0.18121265,110980.0,110970.0,0.39247562]
[1760565960742,0.18121265,110980.0,110970.0,0.21224673]
[1760565960964,0.18121265,110980.0,110970.0,0.12251661]
[1760565961631,0.18121265,110980.0,110970.0,0.00899661]
[1760565961841,5.52121265,110980.0,110970.0,0.00899661]
[1760565962081,5.54062144,110980.0,110970.0,0.00899661]
[1760565962301,5.55694842,110980.0,110970.0,0.00899661]
[1760565962542,5.36408077,110980.0,110970.0,0.00899661]
[1760565962763,5.54429342,110980.0,110970.0,0.00899661]
[1760565966292,0.55594842,110980.0,110970.0,0.00899661]
[1760565966619,0.19653963,110980.0,110970.0,0.00958563]
[1760565966827,0.19653963,110980.0,110970.0,0.12314563]
[1760565968390,0.19653963,110980.0,110970.0,0.00958563]
[1760565968656,0.19653963,110980.0,110970.0,0.12314563]
[1760565968837,0.19653963,110980.0,110970.0,0.12310563]
[1760565975044,0.19653963,110980.0,110970.0,0.00958563]
[1760565975312,0.19653963,110980.0,110970.0,0.12310563]
[1760565975968,0.19653963,110980.0,110970.0,0.00958563]
[1760565976180,0.19653963,110980.0,110970.0,0.12306563]
[1760565980364,0.19653963,110980.0,110970.0,0.00958563]
[1760565980584,5.52488463,110980.0,110970.0,0.11406902]
[1760565980805,5.54429845,110980.0,110970.0,0.00058902]
[1760565981877,0.53653963,110980.0,110970.0,0.00058902]
[1760565982587,0.53653963,110980.0,110970.0,0.11406902]
[1760565983446,0.53653963,110980.0,110970.0,0.00058902]
[1760565983661,0.53653963,110980.0,110970.0,0.11406902]
[1760565984321,0.19653963,110980.0,110970.0,0.11406902]
[1760565984543,0.19653963,110980.0,110970.0,0.12306563]
[1760565984998,0.19653963,110980.0,110970.0,0.00958563]
[1760565985214,0.19653963,110980.0,110970.0,0.12306563]
[1760565985462,0.01632698,110980.0,110970.0,0.12306563]
[1760565985666,0.01632698,110980.0,110970.0,0.30329452]
[1760565985880,0.18920623,110990.0,110980.0,0.18021265]
[1760565986541,0.13105083,111000.0,110980.0,0.18021265]
[1760565986772,0.18019641,110990.0,110980.0,0.26990277]
[1760565986994,0.18019641,110990.0,110980.0,0.38338277]
[1760565987209,0.18019641,110990.0,110980.0,0.38347303]
[1760565988047,0.18119641,110990.0,110980.0,0.38347303]
[1760565988459,0.18219641,110990.0,110980.0,0.38347303]
[1760565990104,0.18219641,110990.0,110980.0,0.26999303]
[1760565990315,0.18219641,110990.0,110980.0,0.38347303]
[1760565991024,0.18219641,110990.0,110980.0,0.26999303]
[1760565991224,0.18219641,110990.0,110980.0,0.38347303]
[1760565992002,0.002,110990.0,110980.0,0.38347303]
[1760565992366,0.002,110990.0,110980.0,0.82222346]
[1760565992833,0.002,110990.0,110980.0,0.70874346]
[1760565993121,0.001,110990.0,110980.0,1.22222346]
[1760565993375,0.18016405,111010.0,110990.0,0.18018178]
[1760565993551,0.18016405,111010.0,111000.0,0.11348]
[1760565994405,0.18016405,111010.0,111000.0,0.29366018]
[1760565994815,0.18016405,111010.0,111000.0,0.11348]
[1760565995377,0.19500759,111010.0,111000.0,0.11348]
[1760565996415,0.18018018,111000.0,110990.0,0.27886851]
[1760565996614,0.18018018,111000.0,110990.0,0.39234851]
[1760565997430,0.19500759,111010.0,110990.0,0.39234851]
[1760565998044,0.19500748,111010.0,111000.0,0.18018018]
[1760565998250,0.19500748,111010.0,111000.0,0.29366018]
[1760565998446,0.53188941,111020.0,111000.0,0.29366018]
[1760565998709,0.18016394,111010.0,111000.0,0.3833503]
[1760565999243,0.19188941,111020.0,111010.0,0.18016394]
[1760565999514,0.20665088,111020.0,111010.0,0.00899661]
[1760566000163,0.20665088,111020.0,111010.0,0.12247661]
[1760566001390,0.20665088,111020.0,111010.0,0.00899661]
[1760566001590,0.20665088,111020.0,111010.0,0.12247661]
[1760566001992,0.19764289,111020.0,111010.0,0.30264055]
[1760566002666,0.19764289,111020.0,111010.0,0.18916055]
[1760566002845,0.19764289,111020.0,111010.0,0.30264055]
[1760566003413,0.0027337,111020.0,111010.0,0.39233067]
[1760566003618,0.18288142,111020.0,111010.0,0.39233067]
[1760566004417,0.18288142,111020.0,111010.0,0.27885067]
[1760566004648,0.18288142,111020.0,111010.0,0.39233067]
[1760566005263,0.0027337,111020.0,111010.0,0.39233067]
[1760566006317,0.0027337,111020.0,111010.0,0.91650335]
[1760566008191,0.0027337,111020.0,111010.0,2.15525378]
[1760566009649,0.0027337,111020.0,111010.0,2.15521378]
[1760566010068,0.0027337,111020.0,111010.0,2.53093518]
[1760566010477,0.0027337,111020.0,111010.0,2.41749518]
[1760566010678,0.0027337,111020.0,111010.0,2.53093518]
[1760566011087,0.0027337,111020.0,111010.0,2.41749518]
[1760566011294,0.0027337,111020.0,111010.0,2.53093518]
[1760566011505,0.0027337,111020.0,111010.0,2.47937811]
[1760566012294,0.0027337,111020.0,111010.0,2.36593811]
[1760566012524,0.0027337,111020.0,111010.0,2.47937811]
[1760566012928,0.0027337,111020.0,111010.0,2.36593811]
[1760566013296,0.0027337,111020.0,111010.0,2.47937811]
[1760566013719,0.0027337,111020.0,111010.0,2.52937811]
[1760566014912,0.0027337,111020.0,111010.0,2.41593811]
[1760566015478,0.0027337,111020.0,111010.0,2.14364563]
[1760566015903,0.0027337,111020.0,111010.0,2.03020563]
[1760566016105,0.0027337,111020.0,111010.0,2.14364563]
[1760566016227,0.0027337,111020.0,111010.0,2.52937811]
[1760566016436,0.0027337,111020.0,111010.0,2.41593811]
[1760566016633,0.0027337,111020.0,111010.0,2.52937811]
[1760566017868,0.0027337,111020.0,111010.0,2.41593811]
[1760566018129,0.0027337,111020.0,111010.0,2.52937811]
[1760566018329,0.0027337,111020.0,111010.0,2.14364563]
[1760566018529,0.0027337,111020.0,111010.0,2.03020563]
[1760566018735,0.0027337,111020.0,111010.0,2.52937811]
[1760566019395,0.0027337,111020.0,111010.0,2.81704848]
[1760566019817,0.0027337,111020.0,111010.0,1.79020563]
[1760566020020,0.0027337,111020.0,111010.0,2.13020563]
[1760566020222,0.0027337,111020.0,111010.0,1.90364563]
[1760566020422,0.0027337,111020.0,111010.0,2.24364563]
[1760566021894,0.0027337,111020.0,111010.0,2.24360563]
[1760566022080,0.0027337,111020.0,111010.0,2.13020563]
[1760566022243,0.0027337,111020.0,111010.0,2.24360563]
[1760566022439,0.0027337,111020.0,111010.0,2.13020563]
[1760566022867,0.0027337,111020.0,111010.0,2.24360563]
[1760566023299,0.0027337,111020.0,111010.0,2.13020563]
[1760566023523,0.0027337,111020.0,111010.0,2.24360563]
[1760566024272,0.0027337,111020.0,111010.0,2.13020563]
[1760566024748,0.0027337,111020.0,111010.0,2.24360563]
[1760566026356,0.0027337,111020.0,111010.0,2.80360848]
[1760566026573,0.32201446,111060.0,111050.0,0.18009905]
[1760566026574,0.04311643,111060.0,111050.0,0.18009905]
[1760566026777,0.09490926,111060.0,111050.0,0.30249566]
[1760566026980,0.1884968,111060.0,111050.0,0.30249566]
[1760566027191,0.00841397,111060.0,111050.0,0.39218578]
[1760566027394,0.23556945,111080.0,111050.0,0.39218578]
[1760566027600,0.18006662,111070.0,111060.0,0.18007302]
[1760566027805,0.18848054,111070.0,111060.0,0.29347302]
[1760566028213,0.00841392,111070.0,111060.0,0.18007302]
[1760566028428,0.00841392,111070.0,111060.0,0.29347302]
[1760566028637,0.00841392,111070.0,111060.0,0.38316314]
[1760566028823,0.18848054,111070.0,111060.0,0.26976314]
[1760566029229,0.00841392,111070.0,111060.0,0.38316314]
[1760566029549,0.001,111070.0,111060.0,0.38316314]
[1760566029947,0.18055264,111080.0,111070.0,0.18006662]
[1760566030154,0.00891289,111080.0,111070.0,0.80292603]
[1760566030374,0.1889633,111080.0,111070.0,0.91632603]
[1760566030587,0.1889633,111080.0,111070.0,0.80292603]
[1760566030820,0.1889633,111080.0,111070.0,0.91632603]
[1760566031444,0.1889633,111080.0,111070.0,0.21208673]
[1760566031861,0.86236615,111080.0,111070.0,0.00899661]
[1760566032298,0.1889633,111080.0,111070.0,0.12239661]
[1760566032705,0.1924932,111080.0,111070.0,0.12239661]
[1760566033558,0.1924932,111080.0,111070.0,0.00899661]
[1760566033759,0.1944932,111080.0,111070.0,0.12239661]
[1760566033962,0.1944932,111080.0,111070.0,0.30246323]
[1760566034184,0.01444279,111080.0,111070.0,0.30246323]
[1760566034389,0.1944932,111080.0,111070.0,0.39215335]
[1760566034787,0.1944932,111080.0,111070.0,0.27875335]
[1760566034996,0.1944932,111080.0,111070.0,0.21208673]
[1760566035199,0.86689605,111080.0,111070.0,0.09868673]
[1760566035404,0.86589605,111080.0,111070.0,0.09868673]
[1760566035609,0.86589605,111080.0,111070.0,0.21208673]
[1760566035814,0.86589605,111080.0,111070.0,0.39215335]
[1760566035815,0.1924932,111080.0,111070.0,0.39215335]
[1760566036238,0.1934932,111080.0,111070.0,0.39215335]
[1760566036446,0.1944932,111080.0,111070.0,0.39215335]
[1760566036645,0.01444279,111080.0,111070.0,0.39215335]
[1760566037898,0.01344279,111080.0,111070.0,0.39215335]
[1760566038376,0.01344279,111080.0,111070.0,0.27875335]
[1760566038605,0.01244279,111080.0,111070.0,0.39215335]
[1760566039300,0.01244279,111080.0,111070.0,0.27875335]
[1760566039540,0.00403125,111080.0,111070.0,1.19215335]
[1760566039990,0.00403125,111080.0,111070.0,1.8655562]
[1760566040433,0.00403125,111080.0,111070.0,2.12833848]
[1760566040649,0.00403125,111080.0,111070.0,2.24173848]
[1760566040939,0.00403125,111080.0,111070.0,2.2055562]
[1760566041141,0.00403125,111080.0,111070.0,2.24169848]
[1760566041376,0.00403125,111080.0,111070.0,1.45493563]
[1760566041601,0.00403125,111080.0,111070.0,2.24169848]
[1760566041849,0.00403125,111080.0,111070.0,1.56829563]
[1760566042985,0.00403125,111080.0,111070.0,1.56833563]
[1760566043451,0.00403125,111080.0,111070.0,1.45493563]
[1760566043684,0.00403125,111080.0,111070.0,1.56833563]
[1760566044375,0.00403125,111080.0,111070.0,0.61875335]
[1760566044597,0.00403125,111080.0,111070.0,0.73215335]
[1760566044849,0.00403125,111080.0,111070.0,1.13215335]
[1760566045298,0.00403125,111080.0,111070.0,1.01875335]
[1760566045518,0.00403125,111080.0,111070.0,1.13215335]
[1760566045753,0.00403125,111080.0,111070.0,0.73215335]
[1760566045993,0.00403125,111080.0,111070.0,1.13215335]
[1760566046462,0.00403125,111080.0,111070.0,0.27875335]
[1760566046685,0.00403125,111080.0,111070.0,0.39215335]
[1760566047121,0.00403125,111080.0,111070.0,0.27875335]
[1760566047357,0.00403125,111080.0,111070.0,0.39215335]
[1760566048012,0.00403125,111080.0,111070.0,0.27875335]
[1760566048230,0.00403125,111080.0,111070.0,0.39211335]
[1760566050029,0.00403125,111080.0,111070.0,0.27875335]
[1760566050231,0.00403125,111080.0,111070.0,0.39211335]
[1760566052208,0.00403125,111080.0,111070.0,0.27875335]
[1760566052585,0.00403125,111080.0,111070.0,0.39211335]
[1760566053004,0.00403125,111080.0,111070.0,1.0655162]
[1760566053168,0.00403125,111080.0,111070.0,1.4055162]
[1760566054408,0.00403125,111080.0,111070.0,1.4555162]
[1760566055749,0.00403125,111080.0,111070.0,1.7421562]
[1760566055943,0.00303125,111080.0,111070.0,1.8555162]
[1760566056188,0.00303125,111080.0,111070.0,1.18211335]
[1760566056396,0.00303125,111080.0,111070.0,1.06875335]
[1760566056605,0.00303125,111080.0,111070.0,0.78211335]
[1760566057008,0.00303125,111080.0,111070.0,1.16875335]
[1760566057158,0.00303125,111080.0,111070.0,1.28211335]
[1760566057768,0.00303125,111080.0,111070.0,1.16875335]
[1760566057965,0.00303125,111080.0,111070.0,1.28211335]
[1760566058370,0.18308166,111080.0,111070.0,0.64868673]
[1760566058589,0.00303125,111080.0,111070.0,0.94211335]
[1760566059000,0.18308166,111080.0,111070.0,0.77875335]
[1760566059195,0.18308166,111080.0,111070.0,0.89211335]
[1760566059396,0.00303125,111080.0,111070.0,0.89211335]
[1760566059626,0.00303125,111080.0,111070.0,0.77875335]
[1760566059819,0.18308166,111080.0,111070.0,0.89211335]
[1760566060560,0.18308166,111080.0,111070.0,0.76975674]
[1760566060760,0.18308166,111080.0,111070.0,0.88311674]
[1760566061202,0.18308166,111080.0,111070.0,0.76975674]
[1760566061408,0.18308166,111080.0,111070.0,0.88311674]
[1760566061621,0.56859031,111080.0,111070.0,0.58969012]
[1760566061832,0.18308166,111080.0,111070.0,0.88311674]
[1760566062448,0.18308166,111080.0,111070.0,0.70305012]
[1760566062657,0.56859031,111080.0,111070.0,0.58969012]
[1760566062863,0.18308166,111080.0,111070.0,0.5]
[1760566063069,0.18008283,111060.0,111040.0,0.31491313]
[1760566063273,0.56558989,111070.0,111060.0,0.18008283]
[1760566063466,0.18008124,111070.0,111060.0,0.27876956]
[1760566063715,0.18008124,111070.0,111060.0,0.09868673]
[1760566064337,0.18008124,111070.0,111060.0,0.21204673]
[1760566064546,0.56558989,111070.0,111060.0,0.12235661]
[1760566065391,0.18008124,111070.0,111060.0,0.30243944]
[1760566065599,0.18905293,111080.0,111060.0,0.30243944]
[1760566065808,0.18006662,111070.0,111060.0,0.18907944]
[1760566066008,0.18006662,111070.0,111060.0,0.30243944]
[1760566066225,0.18006662,111070.0,111060.0,0.18907944]
[1760566066435,0.18006662,111070.0,111060.0,0.30243944]
[1760566066840,0.18006662,111070.0,111060.0,0.18907944]
[1760566067042,0.18006662,111070.0,111060.0,0.30243944]
[1760566067458,0.18006662,111070.0,111060.0,0.18907944]
[1760566067663,0.18006662,111070.0,111060.0,0.30243944]
[1760566068861,0.20709244,111090.0,111070.0,0.18006662]
[1760566069064,0.59274858,111090.0,111080.0,0.29341041]
[1760566069263,0.18018448,111090.0,111080.0,0.12235661]
[1760566069506,0.56569313,111090.0,111080.0,0.00899661]
[1760566069712,0.56569313,111090.0,111080.0,0.12235661]
[1760566070322,0.56669313,111090.0,111080.0,0.12235661]
[1760566070764,0.56569313,111090.0,111080.0,0.00899661]
[1760566070972,0.56669313,111090.0,111080.0,0.12235661]
[1760566071222,0.56769313,111090.0,111080.0,0.12235661]
[1760566071412,0.56766121,111090.0,111080.0,0.00899661]
[1760566071621,0.56766121,111090.0,111080.0,0.12235661]
[1760566072770,0.56766121,111090.0,111080.0,0.00899661]
[1760566073179,5.94148294,111090.0,111080.0,0.12235661]
[1760566073424,5.96088666,111090.0,111080.0,0.12235661]
[1760566073655,5.98794143,111090.0,111080.0,0.12235661]
[1760566073861,5.6024647,111090.0,111080.0,0.12235661]
[1760566074194,5.58306098,111090.0,111080.0,0.12235661]
[1760566074418,5.5866802,111090.0,111080.0,0.12235661]
[1760566075008,5.5866802,111090.0,111080.0,0.00899661]
[1760566075179,5.5866802,111090.0,111080.0,0.12235661]
[1760566075895,5.5866802,111090.0,111080.0,0.00899661]
[1760566076037,5.97215693,111090.0,111080.0,0.00899661]
[1760566076263,5.97215693,111090.0,111080.0,0.11336]
[1760566076465,0.18006662,111070.0,111060.0,0.00899661]